fUST/lending_fUST_20250109
["ID","MTS","AMOUNT","RATE_DAILY","PERIOD"]
[348284326,1736433041616,-2031.0,0.00023096,2]
[348284327,1736433041625,-535.0,0.00023096,2]
[348284328,1736433041635,-2317.0,0.00023096,2]
[348284329,1736433041644,-394.0,0.00023096,2]
[348284330,1736433041653,-811.39838172,0.0002327,5]
[348284331,1736433041663,-200.23987229,0.00023273,2]
[348284332,1736433041672,-562.75,0.00023274,2]
[348284333,1736433041682,-2026.64,0.00023275,3]
[348284334,1736433041692,-928.09305324,0.00023278,7]
[348284335,1736433041702,-756.54,0.00023281,3]
[348284336,1736433041711,-500.0,0.00023283,3]
[348284337,1736433041720,-151.0,0.00023284,7]
[348284338,1736433041730,-155.561421,0.00023284,7]
[348284339,1736433041739,-151.0,0.00023284,7]
[348284340,1736433041748,-151.0,0.00023284,7]
[348284341,1736433041761,-151.0,0.00023284,7]
[348284342,1736433041771,-151.0,0.00023284,7]
[348284343,1736433041780,-252.083349,0.00023284,7]
[348284344,1736433041790,-122.2466187,0.00023284,7]
[348284345,1736433041802,-28.7533813,0.00023284,7]
[348284346,1736433041812,-152.437364,0.00023284,7]
[348284347,1736433041822,-151.0,0.00023284,7]
[348284348,1736433041833,-36.96700344,0.00023284,7]
[348284390,1736433045072,-164.39541052,0.00020988,2]
[348284391,1736433045082,-2040.63326956,0.00023284,7]
[348284392,1736433045092,-2077.600273,0.00023284,7]
[348284393,1736433045101,-1839.78726899,0.00023284,7]
[348284394,1736433045113,-237.81300401,0.00023284,7]
[348284395,1736433045123,-2077.600273,0.00023284,7]
[348284396,1736433045133,-2077.600273,0.00023284,7]
[348284398,1736433045142,-2077.600273,0.00023284,7]
[348284400,1736433045151,-2077.600273,0.00023284,7]
[348284401,1736433045160,-2077.600273,0.00023284,7]
[348284403,1736433045170,-2077.600273,0.00023284,7]
[348284405,1736433045179,-2077.600273,0.00023284,7]
[348284406,1736433045188,-2077.600273,0.00023284,7]
[348284407,1736433045197,-2077.600273,0.00023284,7]
[348284408,1736433045207,-2077.600273,0.00023284,7]
[348284409,1736433045216,-2077.600273,0.00023284,7]
[348284410,1736433045225,-2077.600273,0.00023284,7]
[348284411,1736433045235,-2077.600273,0.00023284,7]
[348284412,1736433045244,-2077.600273,0.00023284,7]
[348284413,1736433045253,-2077.600273,0.00023284,7]
[348284414,1736433045262,-2077.600273,0.00023284,7]
[348284415,1736433045271,-2077.600271,0.00023284,7]
[348284416,1736433045281,-500.0,0.00023285,2]
[348284417,1736433045290,-2084.03,0.00023286,3]
[348284418,1736433045299,-500.0,0.00023286,3]
[348284419,1736433045308,-500.0,0.00023286,3]
[348284420,1736433045318,-500.0,0.00023286,3]
[348284421,1736433045327,-500.0,0.00023286,3]
[348284422,1736433045336,-500.0,0.00023286,3]
[348284423,1736433045347,-500.0,0.00023286,3]
[348284424,1736433045356,-500.0,0.00023286,3]
[348284425,1736433045365,-500.0,0.00023286,3]
[348284426,1736433045374,-500.0,0.00023286,3]
[348284427,1736433045383,-500.0,0.00023286,3]
[348284428,1736433045392,-500.0,0.00023287,8]
[348284429,1736433045401,-151.0,0.0002329,7]
[348284430,1736433045410,-151.0,0.0002329,7]
[348284431,1736433045419,-152.280382,0.0002329,7]
[348284432,1736433045428,-151.0,0.0002329,7]
[348284433,1736433045437,-151.0,0.0002329,7]
[348284434,1736433045447,-151.0,0.0002329,7]
[348284435,1736433045456,-151.0,0.0002329,7]
[348284436,1736433045465,-151.0,0.0002329,7]
[348284437,1736433045474,-151.0,0.0002329,7]
[348284438,1736433045483,-151.0,0.0002329,7]
[348284439,1736433045493,-1087.7417029,0.00023291,5]
[348284440,1736433045505,-480.74225983,0.00023291,5]
[348284481,1736433046716,-56771.04305274,0.00023291,5]
[348284498,1736433598704,382.335464,0.00013973,2]
[348284502,1736434029114,-185.933715,0.00019255,2]
[348284503,1736434029137,-402.03121065,0.00019786,2]
[348284504,1736434029160,-254.01649561,0.00019786,2]
[348284505,1736434031130,-148.014715,0.00019786,2]
[348284506,1736434031151,-402.03121061,0.00019787,2]
[348284507,1736434031174,-402.03121061,0.00019787,2]
[348284508,1736434031196,-402.03121061,0.00019788,2]
[348284509,1736434031217,-402.03121061,0.00019788,2]
[348284510,1736434031239,-463.14563844,0.00019886,2]
[348284511,1736434031263,-300.0,0.00019984,2]
[348284512,1736434031285,-500.0,0.00019985,3]
[348284513,1736434031307,-500.0,0.00019985,3]
[348284514,1736434031332,-500.0,0.00019985,3]
[348284515,1736434031353,-916.14185438,0.00019985,3]
[348284516,1736434039099,-508.73592427,0.00019888,3]
[348284517,1736434039121,-1143.54814562,0.00019985,3]
[348284518,1736434039144,-500.0,0.00019985,3]
[348284519,1736434039166,-488.04771099,0.00019985,3]
[348284520,1736434045112,-11.95228901,0.00019985,3]
[348284521,1736434045136,-500.0,0.00019985,3]
[348284522,1736434045158,-500.0,0.00019985,3]
[348284523,1736434045184,-76.85154438,0.00019985,3]
[348284526,1736434168179,-334.97293827,0.000189,2]
[348284539,1736434233032,-535.09756783,0.000189,2]
[348284541,1736434233042,-405.2524336,0.00019885,2]
[348284544,1736434233053,-1159.46,0.00019888,3]
[348284546,1736434233063,-447.65620249,0.00019973,2]
[348284548,1736434233072,-500.0,0.00019973,2]
[348284549,1736434233082,-204.86880063,0.00019973,2]
[348284596,1736434233537,-295.41286931,0.00019973,2]
[348284598,1736434233546,-300.0,0.00019984,2]
[348284600,1736434233556,-154.32,0.00019985,2]
[348284602,1736434233566,-838.09746168,0.00019985,2]
[348284604,1736434233575,-423.14845562,0.00019985,3]
[348284606,1736434233585,-505.89393201,0.00019985,3]
[348284608,1736434233594,-246.45058543,0.00019985,3]
[348284610,1736434233604,-500.0,0.00019985,3]
[348284612,1736434233614,-500.9597056,0.00019985,3]
[348284614,1736434233623,-500.0,0.00019985,3]
[348284616,1736434233632,-500.0,0.00019985,3]
[348284618,1736434233642,-500.0,0.00019985,3]
[348284620,1736434233652,-500.0,0.00019985,3]
[348284622,1736434233662,-649.66,0.00019985,3]
[348284624,1736434233671,-500.0,0.00019985,3]
[348284626,1736434233681,-500.0,0.00019985,3]
[348284628,1736434233691,-519.28659836,0.00019985,3]
[348284630,1736434233700,-564.66738179,0.00019985,3]
[348284632,1736434233713,-500.0,0.00019985,3]
[348284634,1736434233723,-504.04161417,0.00019985,3]
[348284637,1736434233734,-500.0,0.00019985,3]
[348284638,1736434233744,-500.0,0.00019985,3]
[348284639,1736434233753,-500.0,0.00019985,3]
[348284640,1736434233763,-509.75343244,0.00019985,3]
[348284641,1736434233772,-500.0,0.00019985,3]
[348284642,1736434233782,-500.0,0.00019985,3]
[348284643,1736434233792,-500.0,0.00019985,3]
[348284644,1736434233801,-500.99369359,0.00019985,3]
[348284645,1736434233811,-500.0,0.00019985,3]
[348284646,1736434233820,-500.0,0.00019985,3]
[348284647,1736434233829,-500.0,0.00019985,3]
[348284648,1736434233838,-500.0,0.00019985,3]
[348284649,1736434233847,-500.0,0.00019985,3]
[348284650,1736434233857,-500.0,0.00019985,3]
[348284651,1736434233866,-500.0,0.00019985,3]
[348284652,1736434233875,-500.0,0.00019985,3]
[348284653,1736434233884,-500.0,0.00019985,3]
[348284654,1736434233894,-502.02167406,0.00019985,3]
[348284655,1736434233903,-500.0,0.00019985,3]
[348284656,1736434233912,-200.0,0.00019985,3]
[348284657,1736434233922,-500.0,0.00019985,3]
[348284658,1736434233931,-500.0,0.00019985,3]
[348284659,1736434233940,-500.0,0.00019985,3]
[348284661,1736434233950,-500.0,0.00019985,3]
[348284663,1736434233964,-500.0,0.00019985,3]
[348284665,1736434233974,-500.0,0.00019985,3]
[348284667,1736434233984,-500.0,0.00019985,3]
[348284669,1736434233994,-500.0,0.00019985,3]
[348284671,1736434234003,-500.0,0.00019985,3]
[348284672,1736434234014,-500.0,0.00019985,3]
[348284675,1736434234024,-280.68030823,0.00019985,2]
[348284676,1736434234033,-500.0,0.00019985,3]
[348284678,1736434234042,-295.98893615,0.00019985,2]
[348284680,1736434234052,-500.0,0.00019985,2]
[348284682,1736434234062,-331.57364907,0.00019985,2]
[348284684,1736434234072,-500.0,0.00019985,3]
[348284687,1736434234083,-500.0,0.00019985,3]
[348284689,1736434234093,-602.41196835,0.00019985,3]
[348284691,1736434234103,-500.0,0.00019985,3]
[348284693,1736434234112,-500.0,0.00019985,3]
[348284695,1736434234122,-273.28427833,0.00019985,3]
[348284696,1736434234132,-500.0,0.00019985,3]
[348284698,1736434234142,-500.0,0.00019985,3]
[348284700,1736434234156,-500.0,0.00019985,3]
[348284703,1736434234165,-500.0,0.00019985,3]
[348284705,1736434234175,-500.0,0.00019985,3]
[348284707,1736434234185,-500.0,0.00019985,3]
[348284708,1736434234195,-500.0,0.00019985,3]
[348284711,1736434234206,-496.27072835,0.00019985,3]
[348284712,1736434234216,-500.0,0.00019985,3]
[348284715,1736434234229,-449.61573678,0.00019985,3]
[348284717,1736434234239,-500.0,0.00019985,3]
[348284719,1736434234249,-500.0,0.00019985,3]
[348284721,1736434234259,-500.0,0.00019985,3]
[348284723,1736434234269,-500.0,0.00019985,3]
[348284725,1736434234278,-512.78567916,0.00019985,3]
[348284727,1736434234288,-500.0,0.00019985,3]
[348284729,1736434234297,-500.0,0.00019985,3]
[348284731,1736434234307,-500.0,0.00019985,3]
[348284733,1736434234317,-500.0,0.00019985,3]
[348284735,1736434234327,-500.0,0.00019985,3]
[348284737,1736434234336,-500.0,0.00019985,3]
[348284739,1736434234346,-608.4,0.00019985,3]
[348284741,1736434234356,-500.0,0.00019985,3]
[348284743,1736434234365,-500.0,0.00019985,3]
[348284745,1736434234375,-500.0,0.00019985,3]
[348284747,1736434234384,-500.0,0.00019985,3]
[348284749,1736434234394,-500.0,0.00019985,3]
[348284751,1736434234403,-301.55031041,0.00019985,3]
[348284753,1736434234413,-500.0,0.00019985,3]
[348284755,1736434234422,-500.0,0.00019985,3]
[348284757,1736434234432,-500.0,0.00019985,2]
[348284759,1736434234441,-500.0,0.00019985,3]
[348284761,1736434234451,-500.0,0.00019985,3]
[348284763,1736434234465,-500.0,0.00019985,3]
[348284765,1736434234475,-500.0,0.00019985,3]
[348284767,1736434234484,-500.1747361,0.00019985,3]
[348284769,1736434234494,-500.0,0.00019985,3]
[348284771,1736434234504,-500.0,0.00019985,3]
[348284773,1736434234514,-500.0,0.00019985,3]
[348284775,1736434234524,-500.0,0.00019986,3]
[348284777,1736434234534,-500.0,0.00019986,3]
[348284779,1736434234543,-500.0,0.00019986,3]
[348284781,1736434234552,-500.0,0.00019986,3]
[348284783,1736434234562,-500.0,0.00019986,3]
[348284785,1736434234571,-500.0,0.00019986,3]
[348284787,1736434234581,-500.0,0.00019986,3]
[348284789,1736434234591,-500.0,0.00019986,3]
[348284791,1736434234601,-500.0,0.00019986,3]
[348284793,1736434234611,-500.0,0.00019986,3]
[348284795,1736434234620,-500.0,0.00019986,3]
[348284797,1736434234631,-500.0,0.00019986,3]
[348284799,1736434234640,-500.0,0.00019986,3]
[348284801,1736434234650,-500.0,0.00019986,3]
[348284803,1736434234659,-500.0,0.00019986,3]
[348284805,1736434234669,-165.62761548,0.00019986,3]
[348284807,1736434234679,-581.81,0.00019986,3]
[348284809,1736434234688,-500.0,0.00019986,3]
[348284811,1736434234697,-500.0,0.00019986,3]
[348284813,1736434234710,-500.0,0.00019986,3]
[348284815,1736434234720,-500.71929054,0.00019986,3]
[348284817,1736434234730,-500.0,0.00019986,3]
[348284819,1736434234740,-500.0,0.00019986,3]
[348284821,1736434234749,-500.0,0.00019986,3]
[348284823,1736434234759,-500.0,0.00019986,3]
[348284825,1736434234769,-500.0,0.00019986,3]
[348284827,1736434234778,-500.0,0.00019986,3]
[348284829,1736434234789,-500.78567531,0.00019986,3]
[348284831,1736434234799,-500.0,0.00019986,3]
[348284833,1736434234808,-500.0,0.00019986,3]
[348284836,1736434234818,-500.0,0.00019986,3]
[348284837,1736434234827,-500.0,0.00019986,3]
[348284839,1736434234836,-500.0,0.00019986,3]
[348284842,1736434234846,-500.0,0.00019986,3]
[348284844,1736434234855,-199.23849831,0.00019986,3]
[348284845,1736434234865,-509.49713186,0.00019986,3]
[348284847,1736434234875,-500.0,0.00019986,2]
[348284849,1736434234884,-500.0,0.00019986,3]
[348284852,1736434234894,-500.67533674,0.00019986,3]
[348284853,1736434234903,-500.0,0.00019986,3]
[348284856,1736434234913,-500.0,0.00019986,3]
[348284858,1736434234922,-188.0,0.00019986,2]
[348284860,1736434234932,-501.0356338,0.00019986,3]
[348284862,1736434234941,-500.0,0.00019986,3]
[348284864,1736434234951,-500.0,0.00019986,3]
[348284866,1736434234964,-500.0,0.00019986,3]
[348284867,1736434234973,-500.0,0.00019986,3]
[348284870,1736434234983,-500.0,0.00019986,3]
[348284871,1736434234994,-500.0,0.00019986,3]
[348284874,1736434235004,-500.0,0.00019986,3]
[348284875,1736434235014,-500.0,0.00019986,3]
[348284878,1736434235024,-500.0,0.00019986,3]
[348284880,1736434235034,-500.0,0.00019986,3]
[348284882,1736434235044,-564.20834067,0.00019986,3]
[348284883,1736434235054,-500.0,0.00019986,3]
[348284885,1736434235063,-500.0,0.00019986,3]
[348284887,1736434235072,-500.0,0.00019986,3]
[348284889,1736434235082,-170.55145973,0.00019986,3]
[348284891,1736434235093,-1000.0,0.00019986,3]
[348284893,1736434235103,-500.0,0.00019986,3]
[348284896,1736434235113,-500.0,0.00019986,3]
[348284898,1736434235124,-438.26659971,0.00019986,3]
[348284900,1736434235134,-500.0,0.00019986,3]
[348284902,1736434235145,-500.0,0.00019986,3]
[348284904,1736434235158,-500.0,0.00019986,3]
[348284906,1736434235168,-500.0,0.00019986,3]
[348284908,1736434235178,-500.0,0.00019986,3]
[348284910,1736434235188,-500.0,0.00019986,3]
[348284912,1736434235198,-500.0,0.00019986,3]
[348284914,1736434235210,-500.0,0.00019986,3]
[348284916,1736434235221,-500.0,0.00019986,3]
[348284918,1736434235232,-500.0,0.00019986,3]
[348284920,1736434235241,-500.0,0.00019986,3]
[348284922,1736434235251,-500.0,0.00019986,3]
[348284924,1736434235261,-500.0,0.00019986,3]
[348284926,1736434235270,-500.0,0.00019986,3]
[348284928,1736434235280,-500.0,0.00019986,3]
[348284930,1736434235290,-500.0,0.00019986,3]
[348284932,1736434235300,-500.0,0.00019986,3]
[348284934,1736434235309,-500.0,0.00019986,3]
[348284936,1736434235318,-500.0,0.00019986,3]
[348284938,1736434235328,-607.87517465,0.00019986,3]
[348284940,1736434235338,-500.0,0.00019986,3]
[348284942,1736434235348,-500.0,0.00019986,3]
[348284944,1736434235357,-502.47,0.00019986,3]
[348284946,1736434235366,-500.0,0.00019986,3]
[348284948,1736434235376,-500.0,0.00019986,3]
[348284950,1736434235385,-500.0,0.00019986,3]
[348284952,1736434235395,-500.0,0.00019986,3]
[348284955,1736434235405,-500.0,0.00019986,3]
[348284957,1736434235415,-500.0,0.00019986,3]
[348284959,1736434235424,-500.0,0.00019986,3]
[348284961,1736434235434,-501.44861065,0.00019986,3]
[348284963,1736434235443,-500.0,0.00019986,3]
[348284965,1736434235452,-500.0,0.00019986,3]
[348284967,1736434235463,-500.0,0.00019986,3]
[348284969,1736434235472,-510.85717758,0.00019986,3]
[348284971,1736434235482,-500.0,0.00019986,3]
[348284973,1736434235491,-500.0,0.00019986,3]
[348284975,1736434235501,-213.15620792,0.00019986,3]
[348284976,1736434235510,-500.0,0.00019986,3]
[348284979,1736434235520,-500.0,0.00019986,3]
[348284980,1736434235530,-500.0,0.00019986,3]
[348284991,1736434235616,-500.0,0.00019986,3]
[348284993,1736434235626,-389.37075348,0.00019986,3]
[348284995,1736434235635,-500.0,0.00019986,3]
[348284997,1736434235645,-500.0,0.00019986,3]
[348284999,1736434235655,-500.0,0.00019986,3]
[348285002,1736434235665,-500.0,0.00019986,3]
[348285004,1736434235675,-500.0,0.00019986,3]
[348285006,1736434235684,-500.0,0.00019986,3]
[348285008,1736434235693,-500.0,0.00019988,3]
[348285009,1736434235703,-152.0,0.00020072,2]
[348285011,1736434235714,-1159.46,0.00020162,3]
[348285013,1736434235723,-500.0,0.00020257,3]
[348285016,1736434235732,-500.0,0.00020258,3]
[348285017,1736434235742,-290.17715259,0.00020258,3]
[348285019,1736434235751,-500.0,0.00020258,3]
[348285021,1736434235761,-500.0,0.00020258,3]
[348285024,1736434235771,-500.0,0.00020258,3]
[348285026,1736434235780,-500.0,0.00020258,3]
[348285028,1736434235790,-500.0,0.00020258,3]
[348285030,1736434235800,-500.0,0.00020258,3]
[348285032,1736434235809,-500.0,0.00020258,3]
[348285034,1736434235819,-500.0,0.00020258,3]
[348285036,1736434235828,-500.0,0.00020258,3]
[348285038,1736434235838,-500.0,0.00020258,3]
[348285040,1736434235847,-748.15,0.00020258,2]
[348285042,1736434235856,-500.0,0.00020258,3]
[348285044,1736434235866,-500.0,0.00020258,3]
[348285046,1736434235875,-500.0,0.00020258,3]
[348285048,1736434235885,-500.0,0.00020258,3]
[348285050,1736434235895,-500.0,0.00020258,3]
[348285052,1736434235904,-500.0,0.00020258,3]
[348285054,1736434235913,-500.0,0.00020258,3]
[348285056,1736434235922,-500.0,0.00020258,3]
[348285058,1736434235932,-500.0,0.00020258,3]
[348285060,1736434235942,-500.0,0.00020258,3]
[348285062,1736434235951,-500.0,0.00020258,3]
[348285064,1736434235963,-500.0,0.00020258,3]
[348285065,1736434235972,-500.0,0.00020258,3]
[348285067,1736434235981,-500.0,0.00020258,3]
[348285069,1736434235991,-500.0,0.00020258,3]
[348285071,1736434236000,-500.0,0.00020258,3]
[348285073,1736434236010,-500.0,0.00020258,3]
[348285076,1736434236019,-642.85,0.00020258,3]
[348285078,1736434236029,-500.0,0.00020258,3]
[348285080,1736434236039,-500.0,0.00020258,3]
[348285082,1736434236048,-500.0,0.00020258,3]
[348285083,1736434236058,-500.0,0.00020258,3]
[348285086,1736434236067,-500.0,0.00020258,3]
[348285088,1736434236077,-500.0,0.00020258,3]
[348285090,1736434236087,-500.0,0.00020258,3]
[348285091,1736434236096,-500.0,0.00020258,3]
[348285093,1736434236106,-545.40127569,0.00020258,3]
[348285096,1736434236116,-500.0,0.00020258,3]
[348285098,1736434236126,-512.72,0.00020258,3]
[348285100,1736434236136,-500.0,0.00020258,3]
[348285102,1736434236151,-500.0,0.00020258,3]
[348285104,1736434236161,-500.96620685,0.00020258,3]
[348285106,1736434236171,-500.0,0.00020258,3]
[348285108,1736434236181,-500.0,0.00020258,3]
[348285110,1736434236191,-500.0,0.00020258,3]
[348285112,1736434236201,-500.0,0.00020258,3]
[348285114,1736434236212,-500.0,0.00020258,3]
[348285116,1736434236225,-500.0,0.00020258,3]
[348285118,1736434236236,-500.0,0.00020259,3]
[348285120,1736434236246,-500.0,0.00020259,3]
[348285122,1736434236256,-2059.69,0.00020259,3]
[348285125,1736434236266,-449.89,0.00020259,3]
[348285126,1736434236276,-500.0,0.00020259,3]
[348285128,1736434236286,-285.2384528,0.00020259,3]
[348285131,1736434236295,-209.81826459,0.00020259,3]
[348285132,1736434236305,-500.0,0.00020259,3]
[348285135,1736434236317,-500.0,0.00020259,3]
[348285137,1736434236327,-167.87927433,0.00020259,2]
[348285139,1736434236336,-213.50541487,0.00020259,2]
[348285141,1736434236346,-447.57270145,0.00020259,2]
[348285143,1736434236355,-500.0,0.0002026,3]
[348285145,1736434236364,-530.62,0.0002026,3]
[348285147,1736434236373,-355.83,0.0002026,3]
[348285149,1736434236382,-500.0,0.0002026,3]
[348285151,1736434236393,-439.96,0.0002026,3]
[348285153,1736434236403,-500.0,0.0002026,3]
[348285155,1736434236412,-500.0,0.0002026,3]
[348285157,1736434236422,-500.0,0.0002026,3]
[348285159,1736434236431,-500.0,0.0002026,3]
[348285161,1736434236441,-498.95097685,0.0002026,3]
[348285163,1736434236452,-500.0,0.0002026,3]
[348285165,1736434236463,-500.0,0.0002026,2]
[348285167,1736434236473,-500.0,0.0002026,3]
[348285169,1736434236482,-500.0,0.0002026,3]
[348285171,1736434236491,-500.0,0.0002026,3]
[348285173,1736434236501,-500.0,0.0002026,3]
[348285175,1736434236512,-500.0,0.0002026,3]
[348285177,1736434236521,-500.0,0.0002026,3]
[348285179,1736434236531,-500.0,0.0002026,3]
[348285181,1736434236540,-500.0,0.0002026,3]
[348285183,1736434236551,-500.0,0.0002026,3]
[348285185,1736434236560,-500.0,0.0002026,3]
[348285187,1736434236569,-500.0,0.0002026,3]
[348285189,1736434236578,-500.0,0.0002026,3]
[348285191,1736434236588,-503.82382776,0.0002026,3]
[348285193,1736434236598,-500.0,0.0002026,3]
[348285195,1736434236611,-500.0,0.0002026,3]
[348285198,1736434236623,-6436.21,0.0002026,3]
[348285200,1736434236635,-501.42570542,0.0002026,3]
[348285202,1736434236648,-582.05793864,0.0002026,3]
[348285204,1736434236660,-500.0,0.0002026,3]
[348285207,1736434236671,-500.0,0.0002026,3]
[348285209,1736434236682,-500.0,0.0002026,3]
[348285211,1736434236693,-500.87094482,0.0002026,3]
[348285213,1736434236705,-500.0,0.0002026,3]
[348285216,1736434236719,-500.0,0.0002026,3]
[348285218,1736434236731,-500.0,0.00020262,3]
[348285220,1736434236743,-383.21,0.00020267,2]
[348285222,1736434236755,-405.25243359,0.00020359,2]
[348285225,1736434236769,-1159.46,0.00020436,3]
[348285227,1736434236781,-382.335464,0.00020447,2]
[348285229,1736434236793,-192.0,0.00020524,2]
[348285232,1736434236806,-500.0,0.00020532,3]
[348285234,1736434236819,-748.15,0.00020532,2]
[348285236,1736434236831,-170.53,0.00020532,3]
[348285238,1736434236843,-500.0,0.00020532,3]
[348285241,1736434236855,-438.28,0.00020532,3]
[348285243,1736434236866,-500.0,0.00020532,3]
[348285245,1736434236878,-500.0,0.00020532,3]
[348285247,1736434236889,-500.0,0.00020532,3]
[348285250,1736434236901,-500.0,0.00020532,3]
[348285252,1736434236913,-157.34,0.00020532,3]
[348285254,1736434236925,-500.0,0.00020532,3]
[348285256,1736434236936,-631.91,0.00020532,3]
[348285258,1736434236948,-500.0,0.00020532,3]
[348285260,1736434236962,-500.0,0.00020532,3]
[348285262,1736434236973,-594.6,0.00020532,3]
[348285265,1736434236984,-500.0,0.00020533,3]
[348285266,1736434236996,-500.0,0.00020533,3]
[348285267,1736434237010,-2059.69,0.00020533,3]
[348285268,1736434237022,-614.76,0.00020533,3]
[348285269,1736434237034,-191.25,0.00020533,3]
[348285270,1736434237045,-523.79,0.00020533,3]
[348285271,1736434237056,-500.0,0.00020533,3]
[348285272,1736434237068,-500.0,0.00020533,3]
[348285273,1736434237079,-500.0,0.00020533,3]
[348285274,1736434237092,-500.0,0.00020534,3]
[348285275,1736434237103,-500.0,0.00020534,3]
[348285276,1736434237115,-500.0,0.00020534,3]
[348285277,1736434237127,-500.0,0.00020534,3]
[348285278,1736434237138,-500.0,0.00020534,3]
[348285279,1736434237152,-500.0,0.00020534,3]
[348285281,1736434237163,-500.0,0.00020534,3]
[348285283,1736434237173,-500.0,0.00020534,3]
[348285285,1736434237184,-410.14,0.00020534,3]
[348285287,1736434237195,-500.0,0.00020534,3]
[348285289,1736434237206,-385.33,0.00020534,3]
[348285291,1736434237221,-6436.21,0.00020534,3]
[348285294,1736434237235,-500.0,0.00020534,3]
[348285296,1736434237248,-396.49,0.00020534,3]
[348285298,1736434237262,-187.4942968,0.00020535,3]
[348285300,1736434237273,-4111.04407092,0.00020708,2]
[348285303,1736434237284,-1159.46,0.0002071,3]
[348285305,1736434237295,-500.0,0.00020806,3]
[348285307,1736434237306,-748.15,0.00020806,2]
[348285309,1736434237317,-500.0,0.00020806,3]
[348285311,1736434237328,-500.0,0.00020806,3]
[348285313,1736434237339,-500.0,0.00020806,3]
[348285316,1736434237351,-500.0,0.00020806,3]
[348285318,1736434237362,-500.0,0.00020806,3]
[348285320,1736434237372,-500.0,0.00020806,3]
[348285322,1736434237383,-500.0,0.00020806,3]
[348285324,1736434237393,-200.98,0.00020806,3]
[348285326,1736434237404,-500.0,0.00020807,3]
[348285328,1736434237414,-500.0,0.00020807,3]
[348285330,1736434237425,-2059.69,0.00020807,3]
[348285333,1736434237437,-500.0,0.00020807,3]
[348285335,1736434237448,-500.0,0.00020807,3]
[348285337,1736434237464,-500.0,0.00020808,3]
[348285339,1736434237474,-500.0,0.00020808,3]
[348285341,1736434237485,-500.0,0.00020808,3]
[348285343,1736434237495,-500.0,0.00020808,3]
[348285345,1736434237506,-500.0,0.00020808,3]
[348285347,1736434237516,-500.0,0.00020808,3]
[348285349,1736434237528,-384.53,0.00020808,3]
[348285352,1736434237538,-500.0,0.00020808,3]
[348285354,1736434237548,-171.64,0.00020808,3]
[348285356,1736434237559,-6436.21,0.00020808,3]
[348285358,1736434237569,-500.0,0.00020808,3]
[348285360,1736434237580,-405.25243359,0.00020833,2]
[348285362,1736434237590,-250.0,0.00020887,2]
[348285364,1736434237601,-1159.46,0.00020984,3]
[348285366,1736434237612,-500.0,0.00021,2]
[348285369,1736434237622,-500.0,0.00021,2]
[348285371,1736434237633,-500.0,0.00021,2]
[348285373,1736434237644,-500.0,0.00021,2]
[348285375,1736434237655,-500.0,0.00021,2]
[348285377,1736434237666,-500.0,0.00021,2]
[348285379,1736434237677,-500.0,0.00021,2]
[348285381,1736434237687,-500.0,0.00021,2]
[348285384,1736434237698,-500.0,0.00021,2]